fUST/lending_fUST_20250221
["ID","MTS","AMOUNT","RATE_DAILY","PERIOD"]
[353905003,1740124241581,-552.66575695,0.00013863,2]
[353905004,1740124241591,-500.0,0.00013863,2]
[353905005,1740124241599,-500.0,0.00013863,2]
[353905006,1740124241610,-1036.84,0.00013863,2]
[353905007,1740124241621,-543.42,0.00013863,2]
[353905008,1740124241631,-500.0,0.00013863,2]
[353905009,1740124241641,-500.0,0.00013863,2]
[353905010,1740124241652,-4660.52,0.00013863,2]
[353905011,1740124241661,-500.0,0.00013863,2]
[353905012,1740124241671,-1168.39,0.00013863,2]
[353905013,1740124241679,-1872.06,0.00013863,2]
[353905014,1740124241689,-2132.19,0.00013863,2]
[353905015,1740124241698,-942.16,0.00013863,2]
[353905016,1740124241707,-9690.96,0.00013863,2]
[353905017,1740124241717,-500.0,0.00013863,2]
[353905018,1740124241727,-756.26,0.00013863,2]
[353905019,1740124241738,-500.0,0.00013863,2]
[353905020,1740124241748,-1181.18,0.00013863,2]
[353905021,1740124241757,-500.0,0.00013863,2]
[353905022,1740124241767,-574.55,0.00013863,2]
[353905023,1740124241777,-500.0,0.00013863,2]
[353905024,1740124241786,-500.0,0.00013863,2]
[353905025,1740124241795,-1328.25,0.00013863,2]
[353905026,1740124241805,-593.001473,0.00013863,2]
[353905027,1740124241814,-2438.78,0.00013863,2]
[353905028,1740124241823,-608.62,0.00013863,2]
[353905029,1740124241832,-500.0,0.00013863,2]
[353905030,1740124241842,-18836.5,0.00013863,2]
[353905031,1740124241851,-918.66,0.00013863,2]
[353905032,1740124241860,-749.69,0.00013863,2]
[353905033,1740124241869,-857.21,0.00013863,2]
[353905034,1740124241878,-1989.87,0.00013863,2]
[353905035,1740124241888,-952.38,0.00013863,2]
[353905036,1740124241898,-500.0,0.00013863,2]
[353905037,1740124241907,-3477.28,0.00013863,2]
[353905038,1740124241917,-654.51,0.00013863,2]
[353905039,1740124241926,-1787.5,0.00013863,2]
[353905040,1740124241936,-510.11,0.00013863,2]
[353905041,1740124241945,-1048.79,0.00013863,2]
[353905042,1740124241955,-1923.81,0.00013863,2]
[353905043,1740124241964,-7653.25,0.00013863,2]
[353905044,1740124241973,-1306.71,0.00013863,2]
[353905045,1740124241982,-500.0,0.00013863,2]
[353905046,1740124241991,-1162.33,0.00013863,2]
[353905047,1740124242000,-583.74,0.00013863,2]
[353905048,1740124242009,-500.0,0.00013863,2]
[353905049,1740124242019,-3986.16,0.00013863,2]
[353905050,1740124242028,-822.07,0.00013863,2]
[353905051,1740124242039,-500.0,0.00013863,2]
[353905052,1740124242048,-500.0,0.00013863,2]
[353905053,1740124242058,-586.25,0.00013863,2]
[353905054,1740124242067,-154.7783581,0.000139,2]
[353905055,1740124242076,-154.7783581,0.000139,2]
[353905056,1740124242086,-308.5185246,0.000139,2]
[353905057,1740124242095,-355.2534587,0.000139,2]
[353905058,1740124242104,-678.8020721,0.00013916,2]
[353905059,1740124242113,-8630.71077294,0.00013926,2]
[353905060,1740124242122,-500.0,0.00013944,2]
[353905061,1740124242131,-500.0,0.00013944,2]
[353905062,1740124242141,-500.0,0.00013944,2]
[353905063,1740124242150,-500.0,0.00013944,2]
[353905064,1740124242160,-500.0,0.00013944,2]
[353905065,1740124242169,-500.0,0.00013944,2]
[353905066,1740124242178,-282.32860556,0.00013944,2]
[353905067,1740124242188,-500.0,0.00013944,2]
[353905068,1740124242197,-500.0,0.00013944,2]
[353905069,1740124242206,-353.52973595,0.00013944,2]
[353905070,1740124242216,-213.48803046,0.00013944,2]
[353905071,1740124242225,-460.202981,0.00013944,2]
[353905072,1740124242235,-500.0,0.00013944,2]
[353905073,1740124242245,-500.0,0.00013944,2]
[353905074,1740124242255,-500.0,0.00013944,2]
[353905075,1740124242264,-350.75746811,0.00013944,2]
[353905076,1740124242273,-500.0,0.00013944,2]
[353905077,1740124242282,-500.0,0.00013944,2]
[353905078,1740124242292,-636.70956521,0.00013944,2]
[353905079,1740124242301,-500.0,0.00013944,2]
[353905080,1740124242311,-500.0,0.00013944,2]
[353905081,1740124242320,-500.0,0.00013944,2]
[353905082,1740124242329,-500.0,0.00013944,2]
[353905083,1740124242338,-500.0,0.00013944,2]
[353905084,1740124242347,-500.0,0.00013944,2]
[353905085,1740124242357,-367.77394644,0.00013944,2]
[353905086,1740124242366,-500.0,0.00013944,2]
[353905087,1740124242375,-500.0,0.00013944,2]
[353905088,1740124242385,-500.0,0.00013944,2]
[353905089,1740124242395,-500.0,0.00013944,2]
[353905090,1740124242404,-500.0,0.00013944,2]
[353905091,1740124242414,-500.0,0.00013944,2]
[353905092,1740124242424,-500.0,0.00013944,2]
[353905093,1740124242434,-500.0,0.00013944,2]
[353905094,1740124242443,-500.0,0.00013944,2]
[353905095,1740124242453,-500.0,0.00013944,2]
[353905096,1740124242462,-500.0,0.00013944,2]
[353905097,1740124242472,-208.45888495,0.00013944,2]
[353905098,1740124242482,-500.0,0.00013944,2]
[353905099,1740124242491,-500.0,0.00013944,2]
[353905100,1740124242500,-500.0,0.00013945,2]
[353905101,1740124242510,-500.0,0.00013945,2]
[353905102,1740124242519,-500.0,0.00013945,2]
[353905103,1740124242528,-500.0,0.00013945,2]
[353905104,1740124242537,-500.0,0.00013945,2]
[353905105,1740124242547,-510.40146625,0.00013945,2]
[353905106,1740124242555,-942.41,0.00013945,2]
[353905107,1740124242564,-500.0,0.00013945,2]
[353905108,1740124242574,-500.0,0.00013945,2]
[353905109,1740124242583,-500.0,0.00013945,2]
[353905110,1740124242592,-500.76,0.00013945,2]
[353905111,1740124242601,-500.0,0.00013945,2]
[353905112,1740124242610,-500.0,0.00013945,2]
[353905113,1740124242619,-500.0,0.00013945,2]
[353905114,1740124242628,-627.32,0.00013945,2]
[353905115,1740124242638,-500.0,0.00013945,2]
[353905116,1740124242648,-500.0,0.00013945,2]
[353905117,1740124242657,-500.0,0.00013945,2]
[353905118,1740124242666,-500.0,0.00013945,2]
[353905119,1740124242676,-500.0,0.00013945,2]
[353905120,1740124242685,-500.0,0.00013945,2]
[353905121,1740124242695,-644.69,0.00013945,2]
[353905122,1740124242705,-500.0,0.00013945,2]
[353905123,1740124242715,-500.0,0.00013945,2]
[353905124,1740124242724,-500.0,0.00013945,2]
[353905125,1740124242734,-589.57,0.00013945,2]
[353905126,1740124242744,-500.0,0.00013945,2]
[353905127,1740124242753,-500.0,0.00013945,2]
[353905128,1740124242763,-500.0,0.00013945,2]
[353905129,1740124242869,-500.0,0.00013945,2]
[353905130,1740124242879,-500.0,0.00013945,2]
[353905131,1740124242889,-656.22,0.00013945,2]
[353905132,1740124242899,-500.0,0.00013945,2]
[353905133,1740124242907,-1153.06,0.00013945,2]
[353905134,1740124242917,-500.0,0.00013945,2]
[353905135,1740124242926,-500.0,0.00013945,2]
[353905136,1740124242936,-500.0,0.00013945,2]
[353905137,1740124242945,-500.0,0.00013945,2]
[353905138,1740124242954,-1036.84,0.00013945,2]
[353905139,1740124242964,-500.0,0.00013945,2]
[353905140,1740124242974,-500.0,0.00013945,2]
[353905141,1740124242983,-4660.52,0.00013945,2]
[353905142,1740124242993,-248.27862739,0.00013945,2]
[353905143,1740124243003,-1168.39,0.00013945,2]
[353905144,1740124243012,-1872.06,0.00013945,2]
[353905145,1740124243022,-2132.19,0.00013945,2]
[353905146,1740124243032,-942.16,0.00013945,2]
[353905147,1740124243045,-500.0,0.00013945,2]
[353905148,1740124243057,-9690.96,0.00013945,2]
[353905149,1740124243066,-756.26,0.00013945,2]
[353905150,1740124243075,-500.0,0.00013945,2]
[353905151,1740124243087,-1181.18,0.00013945,2]
[353905152,1740124243098,-500.0,0.00013945,2]
[353905153,1740124243107,-574.55,0.00013945,2]
[353905154,1740124243119,-500.0,0.00013945,2]
[353905155,1740124243128,-500.0,0.00013945,2]
[353905156,1740124243137,-1328.25,0.00013945,2]
[353905157,1740124243147,-2438.78,0.00013945,2]
[353905158,1740124243157,-608.62,0.00013945,2]
[353905159,1740124243166,-500.0,0.00013945,2]
[353905160,1740124243174,-18836.5,0.00013945,2]
[353905161,1740124243183,-749.69,0.00013945,2]
[353905162,1740124243192,-918.66,0.00013945,2]
[353905163,1740124243202,-857.21,0.00013945,2]
[353905164,1740124243212,-1989.87,0.00013945,2]
[353905165,1740124243221,-952.38,0.00013945,2]
[353905166,1740124243230,-500.0,0.00013945,2]
[353905167,1740124243240,-3477.28,0.00013945,2]
[353905168,1740124243249,-654.51,0.00013945,2]
[353905170,1740124243259,-510.11,0.00013945,2]
[353905172,1740124243268,-1787.5,0.00013945,2]
[353905173,1740124243277,-1048.79,0.00013945,2]
[353905174,1740124243286,-1923.81,0.00013945,2]
[353905175,1740124243296,-7653.25,0.00013945,2]
[353905176,1740124243306,-1306.71,0.00013945,2]
[353905177,1740124243315,-500.0,0.00013945,2]
[353905179,1740124243325,-1162.33,0.00013945,2]
[353905181,1740124243334,-583.74,0.00013945,2]
[353905183,1740124243343,-500.0,0.00013945,2]
[353905185,1740124243353,-3986.16,0.00013945,2]
[353905186,1740124243362,-822.07,0.00013945,2]
[353905188,1740124243372,-500.0,0.00013945,2]
[353905190,1740124243381,-500.0,0.00013945,2]
[353905192,1740124243390,-586.25,0.00013945,2]
[353905193,1740124243400,-154.7783581,0.00014,2]
[353905194,1740124243409,-355.2534587,0.00014,2]
[353905195,1740124243419,-154.7783581,0.00014,2]
[353905196,1740124243429,-355.2534587,0.00014,2]
[353905197,1740124243439,-500.0,0.00014027,2]
[353905198,1740124243448,-500.0,0.00014027,2]
[353905199,1740124243458,-500.0,0.00014027,2]
[353905200,1740124243467,-500.0,0.00014027,2]
[353905201,1740124243476,-500.0,0.00014027,2]
[353905202,1740124243486,-942.41,0.00014027,2]
[353905203,1740124243495,-500.0,0.00014027,2]
[353905205,1740124243505,-500.0,0.00014027,2]
[353905206,1740124243514,-500.0,0.00014027,2]
[353905208,1740124243524,-500.76,0.00014027,2]
[353905210,1740124243533,-500.0,0.00014027,2]
[353905212,1740124243542,-500.0,0.00014027,2]
[353905214,1740124243553,-500.0,0.00014027,2]
[353905216,1740124243563,-627.32,0.00014027,2]
[353905217,1740124243572,-495.4709574,0.00014027,2]
[353905218,1740124243581,-500.0,0.00014027,2]
[353905219,1740124243591,-500.0,0.00014027,2]
[353905220,1740124243601,-500.0,0.00014027,2]
[353905221,1740124243610,-500.0,0.00014027,2]
[353905222,1740124243620,-500.0,0.00014027,2]
[353905223,1740124243629,-644.69,0.00014027,2]
[353905224,1740124243639,-500.0,0.00014027,2]
[353905225,1740124243649,-500.0,0.00014027,2]
[353905226,1740124243658,-500.0,0.00014027,2]
[353905227,1740124243667,-589.57,0.00014027,2]
[353905228,1740124243677,-500.0,0.00014027,2]
[353905229,1740124243687,-500.0,0.00014027,2]
[353905230,1740124243696,-500.0,0.00014027,2]
[353905231,1740124243705,-500.0,0.00014027,2]
[353905232,1740124243714,-656.22,0.00014027,2]
[353905233,1740124243724,-500.0,0.00014027,2]
[353905234,1740124243735,-1153.06,0.00014027,2]
[353905236,1740124243745,-500.0,0.00014027,2]
[353905237,1740124243754,-349.0215852,0.00014027,2]
[353905238,1740124243764,-500.0,0.00014027,2]
[353905239,1740124243773,-500.0,0.00014027,2]
[353905240,1740124243782,-1036.84,0.00014027,2]
[353905241,1740124243792,-500.0,0.00014027,2]
[353905242,1740124243802,-372.77038558,0.00014027,2]
[353905243,1740124243812,-4660.52,0.00014027,2]
[353905244,1740124243821,-1168.39,0.00014027,2]
[353905245,1740124243831,-1872.06,0.00014027,2]
[353905246,1740124243841,-2132.19,0.00014027,2]
[353905247,1740124243851,-942.16,0.00014027,2]
[353905248,1740124243861,-500.0,0.00014027,2]
[353905249,1740124243871,-9690.96,0.00014027,2]
[353905250,1740124243880,-756.26,0.00014027,2]
[353905251,1740124243890,-500.0,0.00014027,2]
[353905252,1740124243899,-1181.18,0.00014027,2]
[353905253,1740124243908,-500.0,0.00014027,2]
[353905254,1740124243918,-574.55,0.00014027,2]
[353905255,1740124243927,-500.0,0.00014027,2]
[353905256,1740124243937,-500.0,0.00014027,2]
[353905257,1740124243946,-1328.25,0.00014027,2]
[353905258,1740124243956,-2438.78,0.00014027,2]
[353905259,1740124243965,-608.62,0.00014027,2]
[353905260,1740124243975,-500.0,0.00014027,2]
[353905261,1740124243984,-18836.5,0.00014027,2]
[353905262,1740124243994,-749.69,0.00014027,2]
[353905263,1740124244003,-918.66,0.00014027,2]
[353905264,1740124244013,-857.21,0.00014027,2]
[353905265,1740124244022,-1989.87,0.00014027,2]
[353905266,1740124244032,-952.38,0.00014027,2]
[353905267,1740124244047,-500.0,0.00014027,2]
[353905268,1740124244058,-3477.28,0.00014027,2]
[353905269,1740124244068,-654.51,0.00014027,2]
[353905270,1740124244077,-510.11,0.00014027,2]
[353905271,1740124244087,-1787.5,0.00014027,2]
[353905272,1740124244097,-1048.79,0.00014027,2]
[353905273,1740124244108,-1923.81,0.00014027,2]
[353905274,1740124244118,-7653.25,0.00014027,2]
[353905275,1740124244127,-1306.71,0.00014027,2]
[353905276,1740124244136,-500.0,0.00014027,2]
[353905277,1740124244145,-1162.33,0.00014027,2]
[353905278,1740124244153,-583.74,0.00014027,2]
[353905279,1740124244162,-500.0,0.00014027,2]
[353905280,1740124244171,-3986.16,0.00014027,2]
[353905281,1740124244180,-822.07,0.00014027,2]
[353905282,1740124244190,-500.0,0.00014027,2]
[353905283,1740124244200,-500.0,0.00014027,2]
[353905284,1740124244209,-586.25,0.00014027,2]
[353905285,1740124244217,-500.0,0.00014054,2]
[353905286,1740124244226,-151.0,0.000141,2]
[353905287,1740124244235,-151.0,0.000141,2]
[353905288,1740124244244,-500.0,0.00014109,2]
[353905289,1740124244254,-504.72208563,0.00014109,2]
[353905290,1740124244263,-500.0,0.00014109,2]
[353905291,1740124244271,-500.0,0.00014109,2]
[353905292,1740124244281,-504.89213378,0.00014109,2]
[353905293,1740124244290,-942.41,0.00014109,2]
[353905294,1740124244299,-500.0,0.00014109,2]
[353905295,1740124244308,-500.0,0.00014109,2]
[353905296,1740124244317,-511.36147348,0.00014109,2]
[353905297,1740124244327,-500.76,0.00014109,2]
[353905298,1740124244336,-500.0,0.00014109,2]
[353905299,1740124244345,-500.0,0.00014109,2]
[353905300,1740124244355,-500.0,0.00014109,2]
[353905301,1740124244364,-627.32,0.00014109,2]
[353905302,1740124244374,-500.0,0.00014109,2]
[353905303,1740124244383,-500.0,0.00014109,2]
[353905304,1740124244393,-500.0,0.00014109,2]
[353905305,1740124244403,-500.0,0.00014109,2]
[353905306,1740124244412,-500.0,0.00014109,2]
[353905307,1740124244422,-644.69,0.00014109,2]
[353905308,1740124244431,-500.0,0.00014109,2]
[353905309,1740124244441,-500.0,0.00014109,2]
[353905310,1740124244450,-500.0,0.00014109,2]
[353905311,1740124244459,-589.57,0.00014109,2]
[353905312,1740124244468,-500.0,0.00014109,2]
[353905313,1740124244478,-439.94796735,0.00014109,2]
[353905314,1740124244487,-500.0,0.00014109,2]
[353905315,1740124244497,-268.90884737,0.00014109,2]
[353905316,1740124244506,-656.22,0.00014109,2]
[353905317,1740124244515,-500.0,0.00014109,2]
[353905318,1740124244524,-1153.06,0.00014109,2]
[353905319,1740124244533,-500.0,0.00014109,2]
[353905320,1740124244543,-500.0,0.00014109,2]
[353905321,1740124244551,-500.0,0.00014109,2]
[353905322,1740124244561,-1036.84,0.00014109,2]
[353905323,1740124244570,-500.0,0.00014109,2]
[353905324,1740124244579,-4660.52,0.00014109,2]
[353905325,1740124244589,-1168.39,0.00014109,2]
[353905326,1740124244598,-1872.06,0.00014109,2]
[353905327,1740124244606,-2132.19,0.00014109,2]
[353905328,1740124244615,-942.16,0.00014109,2]
[353905329,1740124244625,-500.0,0.00014109,2]
[353905330,1740124244633,-9690.96,0.00014109,2]
[353905331,1740124244643,-756.26,0.00014109,2]
[353905332,1740124244652,-500.0,0.00014109,2]
[353905333,1740124244661,-1181.18,0.00014109,2]
[353905334,1740124244671,-500.0,0.00014109,2]
[353905335,1740124244680,-574.55,0.00014109,2]
[353905336,1740124244689,-500.0,0.00014109,2]
[353905337,1740124244698,-500.0,0.00014109,2]
[353905338,1740124244708,-1328.25,0.00014109,2]
[353905339,1740124244717,-2438.78,0.00014109,2]
[353905340,1740124244726,-608.62,0.00014109,2]
[353905341,1740124244737,-500.0,0.00014109,2]
[353905342,1740124244747,-18836.5,0.00014109,2]
[353905343,1740124244756,-749.69,0.00014109,2]
[353905344,1740124244765,-918.66,0.00014109,2]
[353905345,1740124244774,-857.21,0.00014109,2]
[353905346,1740124244783,-1989.87,0.00014109,2]
[353905347,1740124244792,-952.38,0.00014109,2]
[353905348,1740124244802,-500.0,0.00014109,2]
[353905349,1740124244811,-3477.28,0.00014109,2]
[353905350,1740124244820,-654.51,0.00014109,2]
[353905351,1740124244829,-1787.5,0.00014109,2]
[353905352,1740124244839,-510.11,0.00014109,2]
[353905353,1740124244848,-1048.79,0.00014109,2]
[353905354,1740124244858,-1923.81,0.00014109,2]
[353905355,1740124244869,-7653.25,0.00014109,2]
[353905356,1740124244878,-1306.71,0.00014109,2]
[353905357,1740124244887,-500.0,0.00014109,2]
[353905358,1740124244896,-1162.33,0.00014109,2]
[353905359,1740124244905,-583.74,0.00014109,2]
[353905360,1740124244915,-500.0,0.00014109,2]
[353905361,1740124244924,-3986.16,0.00014109,2]
[353905362,1740124244934,-822.07,0.00014109,2]
[353905363,1740124244943,-500.0,0.00014109,2]
[353905364,1740124244952,-500.0,0.00014109,2]
[353905365,1740124244961,-586.25,0.00014109,2]
[353905366,1740124244970,-508.28951394,0.00014173,2]
[353905367,1740124244979,-500.0,0.00014173,2]
[353905368,1740124244989,-501.3968598,0.00014173,2]
[353905369,1740124244997,-500.0,0.00014173,2]
[353905370,1740124245007,-500.0,0.00014173,2]
[353905371,1740124245018,-500.0,0.00014173,2]
[353905372,1740124245033,-501.07938361,0.00014173,2]
[353905373,1740124245045,-500.0,0.00014173,2]
[353905374,1740124245055,-279.99377584,0.00014173,2]
[353905375,1740124245065,-500.0,0.00014173,2]
[353905376,1740124245074,-500.0,0.00014173,2]
[353905377,1740124245083,-500.0,0.00014173,2]
[353905378,1740124245093,-502.16312422,0.00014173,2]
[353905379,1740124245102,-507.07882964,0.00014191,2]
[353905380,1740124245111,-500.0,0.00014191,2]
[353905381,1740124245120,-500.0,0.00014191,2]
[353905382,1740124245130,-942.41,0.00014191,2]
[353905383,1740124245139,-500.0,0.00014191,2]
[353905384,1740124245149,-500.0,0.00014191,2]
[353905385,1740124245158,-500.76,0.00014191,2]
[353905386,1740124245167,-500.0,0.00014191,2]
[353905387,1740124245177,-500.0,0.00014191,2]
[353905388,1740124245185,-500.0,0.00014191,2]
[353905389,1740124245194,-627.32,0.00014191,2]
[353905390,1740124245304,-500.0,0.00014191,2]
[353905391,1740124245313,-500.0,0.00014191,2]
[353905392,1740124245322,-500.0,0.00014191,2]
[353905393,1740124245332,-500.0,0.00014191,2]
[353905394,1740124245342,-500.0,0.00014191,2]
[353905395,1740124245351,-644.69,0.00014191,2]
[353905396,1740124245360,-500.0,0.00014191,2]
[353905397,1740124245370,-500.0,0.00014191,2]
[353905398,1740124245379,-500.0,0.00014191,2]
[353905399,1740124245388,-589.57,0.00014191,2]
[353905400,1740124245397,-500.0,0.00014191,2]
[353905401,1740124245406,-500.0,0.00014191,2]
[353905402,1740124245416,-656.22,0.00014191,2]
[353905403,1740124245425,-500.0,0.00014191,2]
[353905404,1740124245435,-1153.06,0.00014191,2]
[353905405,1740124245444,-512.34563179,0.00014191,2]
[353905406,1740124245454,-500.0,0.00014191,2]
[353905407,1740124245463,-500.0,0.00014191,2]
[353905408,1740124245473,-1036.84,0.00014191,2]
[353905409,1740124245482,-500.0,0.00014191,2]
[353905410,1740124245491,-4660.52,0.00014191,2]
[353905411,1740124245500,-1168.39,0.00014191,2]
[353905412,1740124245510,-1872.06,0.00014191,2]
[353905413,1740124245519,-2132.19,0.00014191,2]
[353905414,1740124245528,-942.16,0.00014191,2]
[353905415,1740124245538,-500.0,0.00014191,2]
[353905416,1740124245547,-9690.96,0.00014191,2]
[353905417,1740124245556,-756.26,0.00014191,2]
[353905418,1740124245565,-500.0,0.00014191,2]
[353905419,1740124245574,-1181.18,0.00014191,2]
[353905420,1740124245583,-500.0,0.00014191,2]
[353905421,1740124245592,-574.55,0.00014191,2]
[353905422,1740124245601,-500.0,0.00014191,2]
[353905423,1740124245610,-500.0,0.00014191,2]
[353905424,1740124245619,-1328.25,0.00014191,2]
[353905425,1740124245628,-2438.78,0.00014191,2]
[353905426,1740124245637,-608.62,0.00014191,2]
[353905427,1740124245646,-500.0,0.00014191,2]
[353905428,1740124245655,-18836.5,0.00014191,2]
[353905429,1740124245664,-749.69,0.00014191,2]
[353905430,1740124245673,-918.66,0.00014191,2]
[353905431,1740124245683,-857.21,0.00014191,2]
[353905432,1740124245692,-1989.87,0.00014191,2]
[353905433,1740124245701,-952.38,0.00014191,2]
[353905434,1740124245710,-500.0,0.00014191,2]
[353905435,1740124245719,-3477.28,0.00014191,2]
[353905436,1740124245730,-654.51,0.00014191,2]
[353905437,1740124245739,-1787.5,0.00014191,2]
[353905438,1740124245748,-510.11,0.00014191,2]
[353905439,1740124245758,-1048.79,0.00014191,2]
[353905440,1740124245767,-1923.81,0.00014191,2]
[353905441,1740124245777,-7653.25,0.00014191,2]
[353905442,1740124245786,-1306.71,0.00014191,2]
[353905443,1740124245795,-500.0,0.00014191,2]
[353905444,1740124245805,-1162.33,0.00014191,2]
[353905445,1740124245815,-583.74,0.00014191,2]
[353905446,1740124245824,-500.0,0.00014191,2]
[353905447,1740124245833,-3986.16,0.00014191,2]
[353905448,1740124245843,-822.07,0.00014191,2]
[353905449,1740124245852,-500.0,0.00014191,2]
[353905450,1740124245861,-500.0,0.00014191,2]
[353905451,1740124245870,-586.25,0.00014191,2]
[353905452,1740124245880,-1284.0025602,0.00014199,2]
[353905453,1740124245889,-225.85220959,0.00014199,2]
[353905454,1740124245899,-500.5,0.00014199,2]
[353905455,1740124245908,-160.0,0.00014199,2]
[353905456,1740124245918,-190.65790537,0.00014199,2]
[353905457,1740124245927,-152.74952852,0.00014199,2]
[353905458,1740124245937,-49804.79049797,0.000142,5]
[353905459,1740124245946,-354250.58331385,0.000142,5]
[353905464,1740124246096,-500.0,0.0001378,2]
[353905465,1740124246106,-484.7674761,0.00013863,2]
[353905466,1740124246117,-15.2325239,0.00013863,2]
[353905467,1740124246126,-500.0,0.00013945,2]
[353905468,1740124246136,-96.99177518,0.00014027,2]
[353905469,1740124246148,-403.00822482,0.00014027,2]
[353905470,1740124246158,-500.0,0.00014109,2]
[353905471,1740124246168,-500.0,0.00014191,2]
[353905472,1740124246177,-26136.81411218,0.000142,5]
[353905473,1740124246188,-1351.17226639,0.000142,5]
[353905476,1740124246640,-1339.6,0.000142,5]
[353905477,1740124246651,-1097.60011459,0.000142,5]
[353905485,1740124445211,200.0,0.00014,7]
[353905486,1740124452846,198.0,0.00014,7]
[353905487,1740124485066,200.44700241,0.00014,7]
[353905493,1740124500137,200.0,0.00014,6]
[353905494,1740124520100,200.0,0.00014,6]
[353905495,1740124543366,200.0,0.00014,6]
[353905497,1740124638708,1000.0,0.00014,14]
[353905498,1740124703757,1000.0,0.00019,120]
[353905499,1740124706310,1000.0,0.00019,120]
[353905500,1740124723239,1000.0,0.00019,120]
[353905501,1740125081924,190.648092,9.041e-05,2]
[353905526,1740125431905,-315.44700242,0.00011588,2]
[353905531,1740125431958,-184.55299758,0.00011588,2]
[353905534,1740125431970,-1000.0,0.00013,2]
[353905536,1740125431980,-152.39622675,0.00013598,2]
[353905538,1740125431989,-300.0,0.00013697,2]
[353905539,1740125431999,-500.0,0.00013698,2]
[353905540,1740125432010,-377.8106229,0.00013698,2]
[353905541,1740125432019,-500.0,0.00013698,2]
[353905542,1740125432029,-500.0,0.00013698,2]
[353905543,1740125432039,-502.27230817,0.00013698,2]
[353905544,1740125432048,-500.0,0.00013698,2]
[353905545,1740125432058,-500.0,0.00013698,2]
[353905546,1740125432067,-500.0,0.00013698,2]
[353905547,1740125432076,-515.60732049,0.00013698,2]
[353905548,1740125432088,-85.93267951,0.00013698,2]
[353905549,1740125432098,-500.0,0.00013698,2]
[353905550,1740125432108,-863.88,0.00013698,2]
[353905551,1740125432117,-500.0,0.00013698,2]
[353905553,1740125432127,-506.26753492,0.00013698,2]
[353905554,1740125432138,-500.0,0.00013698,2]
[353905555,1740125432147,-500.0,0.00013698,2]
[353905556,1740125432157,-598.35,0.00013698,2]
[353905557,1740125432167,-500.0,0.00013698,2]
[353905558,1740125432176,-500.0,0.00013698,2]
[353905559,1740125432186,-500.0,0.00013698,2]
[353905560,1740125432196,-500.0,0.00013698,2]
[353905561,1740125432206,-501.96513376,0.00013698,2]
[353905562,1740125432215,-500.0,0.00013698,2]
[353905563,1740125432225,-151.47231649,0.00013698,2]
[353905564,1740125432234,-575.04,0.00013698,2]
[353905565,1740125432243,-506.14115737,0.00013698,2]
[353905566,1740125432253,-500.0,0.00013698,2]
[353905567,1740125432263,-500.0,0.00013698,2]
[353905568,1740125432273,-503.17929181,0.00013698,2]
[353905569,1740125432283,-500.0,0.00013698,2]
[353905570,1740125432292,-500.0,0.00013698,2]